{"text_format":"3","workbook":"xlsx","n_sheets":4,"sheets":["EVENTS","CALENDAR","PRINT VERSION","ADMIN"],"not_rendered":{"defined_names":18},"read":"whole","date_system":"1900"}

{"sheet":"EVENTS","index":0,"n_rows":38,"n_cols":5,"rows_kept":38}
[]
[null,"MONTHLY COMMUNITY"]
[null,"EVENT PLANNER"]
[]
[]
[]
[]
[null,"DATE","DAY","MONTH","EVENT NAME"]
[null,"2014-07-01",{"$f":"IF(ISBLANK(tblEvents[[#This Row],[DATE]]),\"\",UPPER(TEXT(tblEvents[[#This Row],[DATE]],\"ddd\")))","v":"TUE"},{"$f":"IF(ISBLANK(tblEvents[[#This Row],[DATE]]),\"\",UPPER(TEXT(tblEvents[[#This Row],[DATE]],\"mmm\")))","v":"JUL"},"Community Garden"]
[null,"2014-07-01",{"$f":"IF(ISBLANK(tblEvents[[#This Row],[DATE]]),\"\",UPPER(TEXT(tblEvents[[#This Row],[DATE]],\"ddd\")))","v":"TUE"},{"$f":"IF(ISBLANK(tblEvents[[#This Row],[DATE]]),\"\",UPPER(TEXT(tblEvents[[#This Row],[DATE]],\"mmm\")))","v":"JUL"},"City Council"]
[null,"2014-07-02",{"$f":"IF(ISBLANK(tblEvents[[#This Row],[DATE]]),\"\",UPPER(TEXT(tblEvents[[#This Row],[DATE]],\"ddd\")))","v":"WED"},{"$f":"IF(ISBLANK(tblEvents[[#This Row],[DATE]]),\"\",UPPER(TEXT(tblEvents[[#This Row],[DATE]],\"mmm\")))","v":"JUL"},"Community Garden"]
[null,"2014-07-03",{"$f":"IF(ISBLANK(tblEvents[[#This Row],[DATE]]),\"\",UPPER(TEXT(tblEvents[[#This Row],[DATE]],\"ddd\")))","v":"THU"},{"$f":"IF(ISBLANK(tblEvents[[#This Row],[DATE]]),\"\",UPPER(TEXT(tblEvents[[#This Row],[DATE]],\"mmm\")))","v":"JUL"},"Movie Night at the Park"]
[null,"2014-07-08",{"$f":"IF(ISBLANK(tblEvents[[#This Row],[DATE]]),\"\",UPPER(TEXT(tblEvents[[#This Row],[DATE]],\"ddd\")))","v":"TUE"},{"$f":"IF(ISBLANK(tblEvents[[#This Row],[DATE]]),\"\",UPPER(TEXT(tblEvents[[#This Row],[DATE]],\"mmm\")))","v":"JUL"},"City Council"]
[null,"2014-07-11",{"$f":"IF(ISBLANK(tblEvents[[#This Row],[DATE]]),\"\",UPPER(TEXT(tblEvents[[#This Row],[DATE]],\"ddd\")))","v":"FRI"},{"$f":"IF(ISBLANK(tblEvents[[#This Row],[DATE]]),\"\",UPPER(TEXT(tblEvents[[#This Row],[DATE]],\"mmm\")))","v":"JUL"},"Chamber of Comm. Luncheon"]
[null,"2014-07-12",{"$f":"IF(ISBLANK(tblEvents[[#This Row],[DATE]]),\"\",UPPER(TEXT(tblEvents[[#This Row],[DATE]],\"ddd\")))","v":"SAT"},{"$f":"IF(ISBLANK(tblEvents[[#This Row],[DATE]]),\"\",UPPER(TEXT(tblEvents[[#This Row],[DATE]],\"mmm\")))","v":"JUL"},"Antiques Show"]
[null,"2014-07-14",{"$f":"IF(ISBLANK(tblEvents[[#This Row],[DATE]]),\"\",UPPER(TEXT(tblEvents[[#This Row],[DATE]],\"ddd\")))","v":"MON"},{"$f":"IF(ISBLANK(tblEvents[[#This Row],[DATE]]),\"\",UPPER(TEXT(tblEvents[[#This Row],[DATE]],\"mmm\")))","v":"JUL"},"Community Workshop"]
[null,"2014-07-15",{"$f":"IF(ISBLANK(tblEvents[[#This Row],[DATE]]),\"\",UPPER(TEXT(tblEvents[[#This Row],[DATE]],\"ddd\")))","v":"TUE"},{"$f":"IF(ISBLANK(tblEvents[[#This Row],[DATE]]),\"\",UPPER(TEXT(tblEvents[[#This Row],[DATE]],\"mmm\")))","v":"JUL"},"City Council"]
[null,"2014-07-19",{"$f":"IF(ISBLANK(tblEvents[[#This Row],[DATE]]),\"\",UPPER(TEXT(tblEvents[[#This Row],[DATE]],\"ddd\")))","v":"SAT"},{"$f":"IF(ISBLANK(tblEvents[[#This Row],[DATE]]),\"\",UPPER(TEXT(tblEvents[[#This Row],[DATE]],\"mmm\")))","v":"JUL"},"Strategic Planning Workshop"]
[null,"2014-07-20",{"$f":"IF(ISBLANK(tblEvents[[#This Row],[DATE]]),\"\",UPPER(TEXT(tblEvents[[#This Row],[DATE]],\"ddd\")))","v":"SUN"},{"$f":"IF(ISBLANK(tblEvents[[#This Row],[DATE]]),\"\",UPPER(TEXT(tblEvents[[#This Row],[DATE]],\"mmm\")))","v":"JUL"},"Park Clean-up"]
[null,"2014-07-22",{"$f":"IF(ISBLANK(tblEvents[[#This Row],[DATE]]),\"\",UPPER(TEXT(tblEvents[[#This Row],[DATE]],\"ddd\")))","v":"TUE"},{"$f":"IF(ISBLANK(tblEvents[[#This Row],[DATE]]),\"\",UPPER(TEXT(tblEvents[[#This Row],[DATE]],\"mmm\")))","v":"JUL"},"City Council"]
[null,"2014-07-26",{"$f":"IF(ISBLANK(tblEvents[[#This Row],[DATE]]),\"\",UPPER(TEXT(tblEvents[[#This Row],[DATE]],\"ddd\")))","v":"SAT"},{"$f":"IF(ISBLANK(tblEvents[[#This Row],[DATE]]),\"\",UPPER(TEXT(tblEvents[[#This Row],[DATE]],\"mmm\")))","v":"JUL"},"Downtown Walking Tour"]
[null,"2014-07-26",{"$f":"IF(ISBLANK(tblEvents[[#This Row],[DATE]]),\"\",UPPER(TEXT(tblEvents[[#This Row],[DATE]],\"ddd\")))","v":"SAT"},{"$f":"IF(ISBLANK(tblEvents[[#This Row],[DATE]]),\"\",UPPER(TEXT(tblEvents[[#This Row],[DATE]],\"mmm\")))","v":"JUL"},"Pub Crawl"]
[null,"2014-07-29",{"$f":"IF(ISBLANK(tblEvents[[#This Row],[DATE]]),\"\",UPPER(TEXT(tblEvents[[#This Row],[DATE]],\"ddd\")))","v":"TUE"},{"$f":"IF(ISBLANK(tblEvents[[#This Row],[DATE]]),\"\",UPPER(TEXT(tblEvents[[#This Row],[DATE]],\"mmm\")))","v":"JUL"},"City Council"]
[null,"2014-08-05",{"$f":"IF(ISBLANK(tblEvents[[#This Row],[DATE]]),\"\",UPPER(TEXT(tblEvents[[#This Row],[DATE]],\"ddd\")))","v":"TUE"},{"$f":"IF(ISBLANK(tblEvents[[#This Row],[DATE]]),\"\",UPPER(TEXT(tblEvents[[#This Row],[DATE]],\"mmm\")))","v":"AUG"},"City Council"]
[null,"2014-08-10",{"$f":"IF(ISBLANK(tblEvents[[#This Row],[DATE]]),\"\",UPPER(TEXT(tblEvents[[#This Row],[DATE]],\"ddd\")))","v":"SUN"},{"$f":"IF(ISBLANK(tblEvents[[#This Row],[DATE]]),\"\",UPPER(TEXT(tblEvents[[#This Row],[DATE]],\"mmm\")))","v":"AUG"},"Park Clean-up"]
[null,"2014-08-12",{"$f":"IF(ISBLANK(tblEvents[[#This Row],[DATE]]),\"\",UPPER(TEXT(tblEvents[[#This Row],[DATE]],\"ddd\")))","v":"TUE"},{"$f":"IF(ISBLANK(tblEvents[[#This Row],[DATE]]),\"\",UPPER(TEXT(tblEvents[[#This Row],[DATE]],\"mmm\")))","v":"AUG"},"City Council"]
[null,"2014-08-13",{"$f":"IF(ISBLANK(tblEvents[[#This Row],[DATE]]),\"\",UPPER(TEXT(tblEvents[[#This Row],[DATE]],\"ddd\")))","v":"WED"},{"$f":"IF(ISBLANK(tblEvents[[#This Row],[DATE]]),\"\",UPPER(TEXT(tblEvents[[#This Row],[DATE]],\"mmm\")))","v":"AUG"},"Community Garden"]
[null,"2014-09-01",{"$f":"IF(ISBLANK(tblEvents[[#This Row],[DATE]]),\"\",UPPER(TEXT(tblEvents[[#This Row],[DATE]],\"ddd\")))","v":"MON"},{"$f":"IF(ISBLANK(tblEvents[[#This Row],[DATE]]),\"\",UPPER(TEXT(tblEvents[[#This Row],[DATE]],\"mmm\")))","v":"SEP"},"Budget Committee"]
[null,"2014-10-01",{"$f":"IF(ISBLANK(tblEvents[[#This Row],[DATE]]),\"\",UPPER(TEXT(tblEvents[[#This Row],[DATE]],\"ddd\")))","v":"WED"},{"$f":"IF(ISBLANK(tblEvents[[#This Row],[DATE]]),\"\",UPPER(TEXT(tblEvents[[#This Row],[DATE]],\"mmm\")))","v":"OCT"},"Budget Committee"]
[null,"2014-11-03",{"$f":"IF(ISBLANK(tblEvents[[#This Row],[DATE]]),\"\",UPPER(TEXT(tblEvents[[#This Row],[DATE]],\"ddd\")))","v":"MON"},{"$f":"IF(ISBLANK(tblEvents[[#This Row],[DATE]]),\"\",UPPER(TEXT(tblEvents[[#This Row],[DATE]],\"mmm\")))","v":"NOV"},"Budget Committee"]
[null,"2014-12-01",{"$f":"IF(ISBLANK(tblEvents[[#This Row],[DATE]]),\"\",UPPER(TEXT(tblEvents[[#This Row],[DATE]],\"ddd\")))","v":"MON"},{"$f":"IF(ISBLANK(tblEvents[[#This Row],[DATE]]),\"\",UPPER(TEXT(tblEvents[[#This Row],[DATE]],\"mmm\")))","v":"DEC"},"Budget Committee"]
[null,"2015-01-01",{"$f":"IF(ISBLANK(tblEvents[[#This Row],[DATE]]),\"\",UPPER(TEXT(tblEvents[[#This Row],[DATE]],\"ddd\")))","v":"THU"},{"$f":"IF(ISBLANK(tblEvents[[#This Row],[DATE]]),\"\",UPPER(TEXT(tblEvents[[#This Row],[DATE]],\"mmm\")))","v":"JAN"},"Budget Committee"]
[null,"2015-02-02",{"$f":"IF(ISBLANK(tblEvents[[#This Row],[DATE]]),\"\",UPPER(TEXT(tblEvents[[#This Row],[DATE]],\"ddd\")))","v":"MON"},{"$f":"IF(ISBLANK(tblEvents[[#This Row],[DATE]]),\"\",UPPER(TEXT(tblEvents[[#This Row],[DATE]],\"mmm\")))","v":"FEB"},"Budget Committee"]
[null,"2015-03-02",{"$f":"IF(ISBLANK(tblEvents[[#This Row],[DATE]]),\"\",UPPER(TEXT(tblEvents[[#This Row],[DATE]],\"ddd\")))","v":"MON"},{"$f":"IF(ISBLANK(tblEvents[[#This Row],[DATE]]),\"\",UPPER(TEXT(tblEvents[[#This Row],[DATE]],\"mmm\")))","v":"MAR"},"Budget Committee"]
[null,"2015-04-01",{"$f":"IF(ISBLANK(tblEvents[[#This Row],[DATE]]),\"\",UPPER(TEXT(tblEvents[[#This Row],[DATE]],\"ddd\")))","v":"WED"},{"$f":"IF(ISBLANK(tblEvents[[#This Row],[DATE]]),\"\",UPPER(TEXT(tblEvents[[#This Row],[DATE]],\"mmm\")))","v":"APR"},"Budget Committee"]
[null,"2015-05-01",{"$f":"IF(ISBLANK(tblEvents[[#This Row],[DATE]]),\"\",UPPER(TEXT(tblEvents[[#This Row],[DATE]],\"ddd\")))","v":"FRI"},{"$f":"IF(ISBLANK(tblEvents[[#This Row],[DATE]]),\"\",UPPER(TEXT(tblEvents[[#This Row],[DATE]],\"mmm\")))","v":"MAY"},"Budget Committee"]
[null,"2015-06-01",{"$f":"IF(ISBLANK(tblEvents[[#This Row],[DATE]]),\"\",UPPER(TEXT(tblEvents[[#This Row],[DATE]],\"ddd\")))","v":"MON"},{"$f":"IF(ISBLANK(tblEvents[[#This Row],[DATE]]),\"\",UPPER(TEXT(tblEvents[[#This Row],[DATE]],\"mmm\")))","v":"JUN"},"Budget Committee"]
[null,"2015-06-02",{"$f":"IF(ISBLANK(tblEvents[[#This Row],[DATE]]),\"\",UPPER(TEXT(tblEvents[[#This Row],[DATE]],\"ddd\")))","v":"TUE"},{"$f":"IF(ISBLANK(tblEvents[[#This Row],[DATE]]),\"\",UPPER(TEXT(tblEvents[[#This Row],[DATE]],\"mmm\")))","v":"JUN"},"City Council"]

{"sheet":"CALENDAR","index":1,"n_rows":35,"n_cols":21,"rows_kept":35,"merged":[[1,5,1,11],[30,8,34,20]]}
[]
[null,null,2014,null,null,{"$f":"LOOKUP(MonthNum,tblMonths[NUMBER],tblMonths[MONTH])","v":"JULY"}]
[null,null,7,null,null,{"$f":"DATE(ViewYear,MonthNum,1)","v":"2014-07-01"},null,null,{"$f":"WEEKDAY(StartDate)","v":3}]
[null,null,"SUN",null,null,"MON",null,null,"TUE",null,null,"WED",null,null,"THU",null,null,"FRI",null,null,"SAT"]
[]
[null,null,{"$f":"StartDate-(WEEKDAY(StartDate)-1)+{0;1;2;3;4;5}*7 +{1,2,3,4,5,6,7}-3+COLUMN(B1)","v":"2014-06-29"},null,null,{"$f":"StartDate-(WEEKDAY(StartDate)-1)+{0;1;2;3;4;5}*7 +{1,2,3,4,5,6,7}-3+COLUMN(C1)","v":"2014-06-30"},null,null,{"$f":"StartDate-(WEEKDAY(StartDate)-1)+{0;1;2;3;4;5}*7 +{1,2,3,4,5,6,7}-3+COLUMN(D1)","v":"2014-07-01"},null,null,{"$f":"StartDate-(WEEKDAY(StartDate)-1)+{0;1;2;3;4;5}*7 +{1,2,3,4,5,6,7}-3+COLUMN(E1)","v":"2014-07-02"},null,null,{"$f":"StartDate-(WEEKDAY(StartDate)-1)+{0;1;2;3;4;5}*7 +{1,2,3,4,5,6,7}-3+COLUMN(F1)","v":"2014-07-03"},null,null,{"$f":"StartDate-(WEEKDAY(StartDate)-1)+{0;1;2;3;4;5}*7 +{1,2,3,4,5,6,7}-3+COLUMN(G1)","v":"2014-07-04"},null,null,{"$f":"StartDate-(WEEKDAY(StartDate)-1)+{0;1;2;3;4;5}*7 +{1,2,3,4,5,6,7}-3+COLUMN(H1)","v":"2014-07-05"}]
[null,null,{"$f":"IFERROR(INDEX(tblEvents[],SMALL(IF(Dates=C$6,ROW(Dates)),ROW(1:1))-TableRowStart,4),\"\")","v":""},null,null,{"$f":"IFERROR(INDEX(tblEvents[],SMALL(IF(Dates=F$6,ROW(Dates)),ROW(1:1))-TableRowStart,4),\"\")","v":""},null,null,{"$f":"IFERROR(INDEX(tblEvents[],SMALL(IF(Dates=I$6,ROW(Dates)),ROW(1:1))-TableRowStart,4),\"\")","v":"Community Garden"},null,null,{"$f":"IFERROR(INDEX(tblEvents[],SMALL(IF(Dates=L$6,ROW(Dates)),ROW(1:1))-TableRowStart,4),\"\")","v":"Community Garden"},null,null,{"$f":"IFERROR(INDEX(tblEvents[],SMALL(IF(Dates=O$6,ROW(Dates)),ROW(1:1))-TableRowStart,4),\"\")","v":"Movie Night at the Park"},null,null,{"$f":"IFERROR(INDEX(tblEvents[],SMALL(IF(Dates=R$6,ROW(Dates)),ROW(1:1))-TableRowStart,4),\"\")","v":""},null,null,{"$f":"IFERROR(INDEX(tblEvents[],SMALL(IF(Dates=U$6,ROW(Dates)),ROW(1:1))-TableRowStart,4),\"\")","v":""}]
[null,null,{"$f":"IFERROR(INDEX(tblEvents[],SMALL(IF(Dates=C$6,ROW(Dates)),ROW(2:2))-TableRowStart,4),\"\")","v":""},null,null,{"$f":"IFERROR(INDEX(tblEvents[],SMALL(IF(Dates=F$6,ROW(Dates)),ROW(2:2))-TableRowStart,4),\"\")","v":""},null,null,{"$f":"IFERROR(INDEX(tblEvents[],SMALL(IF(Dates=I$6,ROW(Dates)),ROW(2:2))-TableRowStart,4),\"\")","v":"City Council"},null,null,{"$f":"IFERROR(INDEX(tblEvents[],SMALL(IF(Dates=L$6,ROW(Dates)),ROW(2:2))-TableRowStart,4),\"\")","v":""},null,null,{"$f":"IFERROR(INDEX(tblEvents[],SMALL(IF(Dates=O$6,ROW(Dates)),ROW(2:2))-TableRowStart,4),\"\")","v":""},null,null,{"$f":"IFERROR(INDEX(tblEvents[],SMALL(IF(Dates=R$6,ROW(Dates)),ROW(2:2))-TableRowStart,4),\"\")","v":""},null,null,{"$f":"IFERROR(INDEX(tblEvents[],SMALL(IF(Dates=U$6,ROW(Dates)),ROW(2:2))-TableRowStart,4),\"\")","v":""}]
[null,null,{"$f":"IFERROR(INDEX(tblEvents[],SMALL(IF(Dates=C$6,ROW(Dates)),ROW(3:3))-TableRowStart,4),\"\")","v":""},null,null,{"$f":"IFERROR(INDEX(tblEvents[],SMALL(IF(Dates=F$6,ROW(Dates)),ROW(3:3))-TableRowStart,4),\"\")","v":""},null,null,{"$f":"IFERROR(INDEX(tblEvents[],SMALL(IF(Dates=I$6,ROW(Dates)),ROW(3:3))-TableRowStart,4),\"\")","v":""},null,null,{"$f":"IFERROR(INDEX(tblEvents[],SMALL(IF(Dates=L$6,ROW(Dates)),ROW(3:3))-TableRowStart,4),\"\")","v":""},null,null,{"$f":"IFERROR(INDEX(tblEvents[],SMALL(IF(Dates=O$6,ROW(Dates)),ROW(3:3))-TableRowStart,4),\"\")","v":""},null,null,{"$f":"IFERROR(INDEX(tblEvents[],SMALL(IF(Dates=R$6,ROW(Dates)),ROW(3:3))-TableRowStart,4),\"\")","v":""},null,null,{"$f":"IFERROR(INDEX(tblEvents[],SMALL(IF(Dates=U$6,ROW(Dates)),ROW(3:3))-TableRowStart,4),\"\")","v":""}]
[null,null,{"$f":"IFERROR(INDEX(tblEvents[],SMALL(IF(Dates=C$6,ROW(Dates)),ROW(#REF!))-TableRowStart,4),\"\")","v":""},null,null,{"$f":"IFERROR(INDEX(tblEvents[],SMALL(IF(Dates=F$6,ROW(Dates)),ROW(#REF!))-TableRowStart,4),\"\")","v":""},null,null,{"$f":"IFERROR(INDEX(tblEvents[],SMALL(IF(Dates=I$6,ROW(Dates)),ROW(#REF!))-TableRowStart,4),\"\")","v":""},null,null,{"$f":"IFERROR(INDEX(tblEvents[],SMALL(IF(Dates=L$6,ROW(Dates)),ROW(#REF!))-TableRowStart,4),\"\")","v":""},null,null,{"$f":"IFERROR(INDEX(tblEvents[],SMALL(IF(Dates=O$6,ROW(Dates)),ROW(#REF!))-TableRowStart,4),\"\")","v":""},null,null,{"$f":"IFERROR(INDEX(tblEvents[],SMALL(IF(Dates=R$6,ROW(Dates)),ROW(#REF!))-TableRowStart,4),\"\")","v":""},null,null,{"$f":"IFERROR(INDEX(tblEvents[],SMALL(IF(Dates=U$6,ROW(Dates)),ROW(#REF!))-TableRowStart,4),\"\")","v":""}]
[null,null,{"$f":"U6+1","v":"2014-07-06"},null,null,{"$f":"C11+1","v":"2014-07-07"},null,null,{"$f":"F11+1","v":"2014-07-08"},null,null,{"$f":"I11+1","v":"2014-07-09"},null,null,{"$f":"L11+1","v":"2014-07-10"},null,null,{"$f":"O11+1","v":"2014-07-11"},null,null,{"$f":"R11+1","v":"2014-07-12"}]
[null,null,{"$f":"IFERROR(INDEX(tblEvents[],SMALL(IF(Dates=C$11,ROW(Dates)),ROW(1:1))-TableRowStart,4),\"\")","v":""},null,null,{"$f":"IFERROR(INDEX(tblEvents[],SMALL(IF(Dates=F$11,ROW(Dates)),ROW(1:1))-TableRowStart,4),\"\")","v":""},null,null,{"$f":"IFERROR(INDEX(tblEvents[],SMALL(IF(Dates=I$11,ROW(Dates)),ROW(1:1))-TableRowStart,4),\"\")","v":"City Council"},null,null,{"$f":"IFERROR(INDEX(tblEvents[],SMALL(IF(Dates=L$11,ROW(Dates)),ROW(1:1))-TableRowStart,4),\"\")","v":""},null,null,{"$f":"IFERROR(INDEX(tblEvents[],SMALL(IF(Dates=O$11,ROW(Dates)),ROW(1:1))-TableRowStart,4),\"\")","v":""},null,null,{"$f":"IFERROR(INDEX(tblEvents[],SMALL(IF(Dates=R$11,ROW(Dates)),ROW(1:1))-TableRowStart,4),\"\")","v":"Chamber of Comm. Luncheon"},null,null,{"$f":"IFERROR(INDEX(tblEvents[],SMALL(IF(Dates=U$11,ROW(Dates)),ROW(1:1))-TableRowStart,4),\"\")","v":"Antiques Show"}]
[null,null,{"$f":"IFERROR(INDEX(tblEvents[],SMALL(IF(Dates=C$11,ROW(Dates)),ROW(2:2))-TableRowStart,4),\"\")","v":""},null,null,{"$f":"IFERROR(INDEX(tblEvents[],SMALL(IF(Dates=F$11,ROW(Dates)),ROW(2:2))-TableRowStart,4),\"\")","v":""},null,null,{"$f":"IFERROR(INDEX(tblEvents[],SMALL(IF(Dates=I$11,ROW(Dates)),ROW(2:2))-TableRowStart,4),\"\")","v":""},null,null,{"$f":"IFERROR(INDEX(tblEvents[],SMALL(IF(Dates=L$11,ROW(Dates)),ROW(2:2))-TableRowStart,4),\"\")","v":""},null,null,{"$f":"IFERROR(INDEX(tblEvents[],SMALL(IF(Dates=O$11,ROW(Dates)),ROW(2:2))-TableRowStart,4),\"\")","v":""},null,null,{"$f":"IFERROR(INDEX(tblEvents[],SMALL(IF(Dates=R$11,ROW(Dates)),ROW(2:2))-TableRowStart,4),\"\")","v":""},null,null,{"$f":"IFERROR(INDEX(tblEvents[],SMALL(IF(Dates=U$11,ROW(Dates)),ROW(2:2))-TableRowStart,4),\"\")","v":""}]
[null,null,{"$f":"IFERROR(INDEX(tblEvents[],SMALL(IF(Dates=C$11,ROW(Dates)),ROW(3:3))-TableRowStart,4),\"\")","v":""},null,null,{"$f":"IFERROR(INDEX(tblEvents[],SMALL(IF(Dates=F$11,ROW(Dates)),ROW(3:3))-TableRowStart,4),\"\")","v":""},null,null,{"$f":"IFERROR(INDEX(tblEvents[],SMALL(IF(Dates=I$11,ROW(Dates)),ROW(3:3))-TableRowStart,4),\"\")","v":""},null,null,{"$f":"IFERROR(INDEX(tblEvents[],SMALL(IF(Dates=L$11,ROW(Dates)),ROW(3:3))-TableRowStart,4),\"\")","v":""},null,null,{"$f":"IFERROR(INDEX(tblEvents[],SMALL(IF(Dates=O$11,ROW(Dates)),ROW(3:3))-TableRowStart,4),\"\")","v":""},null,null,{"$f":"IFERROR(INDEX(tblEvents[],SMALL(IF(Dates=R$11,ROW(Dates)),ROW(3:3))-TableRowStart,4),\"\")","v":""},null,null,{"$f":"IFERROR(INDEX(tblEvents[],SMALL(IF(Dates=U$11,ROW(Dates)),ROW(3:3))-TableRowStart,4),\"\")","v":""}]
[null,null,{"$f":"IFERROR(INDEX(tblEvents[],SMALL(IF(Dates=C$11,ROW(Dates)),ROW(#REF!))-TableRowStart,4),\"\")","v":""},null,null,{"$f":"IFERROR(INDEX(tblEvents[],SMALL(IF(Dates=F$11,ROW(Dates)),ROW(#REF!))-TableRowStart,4),\"\")","v":""},null,null,{"$f":"IFERROR(INDEX(tblEvents[],SMALL(IF(Dates=I$11,ROW(Dates)),ROW(#REF!))-TableRowStart,4),\"\")","v":""},null,null,{"$f":"IFERROR(INDEX(tblEvents[],SMALL(IF(Dates=L$11,ROW(Dates)),ROW(#REF!))-TableRowStart,4),\"\")","v":""},null,null,{"$f":"IFERROR(INDEX(tblEvents[],SMALL(IF(Dates=O$11,ROW(Dates)),ROW(#REF!))-TableRowStart,4),\"\")","v":""},null,null,{"$f":"IFERROR(INDEX(tblEvents[],SMALL(IF(Dates=R$11,ROW(Dates)),ROW(#REF!))-TableRowStart,4),\"\")","v":""},null,null,{"$f":"IFERROR(INDEX(tblEvents[],SMALL(IF(Dates=U$11,ROW(Dates)),ROW(#REF!))-TableRowStart,4),\"\")","v":""}]
[null,null,{"$f":"U11+1","v":"2014-07-13"},null,null,{"$f":"C16+1","v":"2014-07-14"},null,null,{"$f":"F16+1","v":"2014-07-15"},null,null,{"$f":"I16+1","v":"2014-07-16"},null,null,{"$f":"L16+1","v":"2014-07-17"},null,null,{"$f":"O16+1","v":"2014-07-18"},null,null,{"$f":"R16+1","v":"2014-07-19"}]
[null,null,{"$f":"IFERROR(INDEX(tblEvents[],SMALL(IF(Dates=C$16,ROW(Dates)),ROW(1:1))-TableRowStart,4),\"\")","v":""},null,null,{"$f":"IFERROR(INDEX(tblEvents[],SMALL(IF(Dates=F$16,ROW(Dates)),ROW(1:1))-TableRowStart,4),\"\")","v":"Community Workshop"},null,null,{"$f":"IFERROR(INDEX(tblEvents[],SMALL(IF(Dates=I$16,ROW(Dates)),ROW(1:1))-TableRowStart,4),\"\")","v":"City Council"},null,null,{"$f":"IFERROR(INDEX(tblEvents[],SMALL(IF(Dates=L$16,ROW(Dates)),ROW(1:1))-TableRowStart,4),\"\")","v":""},null,null,{"$f":"IFERROR(INDEX(tblEvents[],SMALL(IF(Dates=O$16,ROW(Dates)),ROW(1:1))-TableRowStart,4),\"\")","v":""},null,null,{"$f":"IFERROR(INDEX(tblEvents[],SMALL(IF(Dates=R$16,ROW(Dates)),ROW(1:1))-TableRowStart,4),\"\")","v":""},null,null,{"$f":"IFERROR(INDEX(tblEvents[],SMALL(IF(Dates=U$16,ROW(Dates)),ROW(1:1))-TableRowStart,4),\"\")","v":"Strategic Planning Workshop"}]
[null,null,{"$f":"IFERROR(INDEX(tblEvents[],SMALL(IF(Dates=C$16,ROW(Dates)),ROW(2:2))-TableRowStart,4),\"\")","v":""},null,null,{"$f":"IFERROR(INDEX(tblEvents[],SMALL(IF(Dates=F$16,ROW(Dates)),ROW(2:2))-TableRowStart,4),\"\")","v":""},null,null,{"$f":"IFERROR(INDEX(tblEvents[],SMALL(IF(Dates=I$16,ROW(Dates)),ROW(2:2))-TableRowStart,4),\"\")","v":""},null,null,{"$f":"IFERROR(INDEX(tblEvents[],SMALL(IF(Dates=L$16,ROW(Dates)),ROW(2:2))-TableRowStart,4),\"\")","v":""},null,null,{"$f":"IFERROR(INDEX(tblEvents[],SMALL(IF(Dates=O$16,ROW(Dates)),ROW(2:2))-TableRowStart,4),\"\")","v":""},null,null,{"$f":"IFERROR(INDEX(tblEvents[],SMALL(IF(Dates=R$16,ROW(Dates)),ROW(2:2))-TableRowStart,4),\"\")","v":""},null,null,{"$f":"IFERROR(INDEX(tblEvents[],SMALL(IF(Dates=U$16,ROW(Dates)),ROW(2:2))-TableRowStart,4),\"\")","v":""}]
[null,null,{"$f":"IFERROR(INDEX(tblEvents[],SMALL(IF(Dates=C$16,ROW(Dates)),ROW(3:3))-TableRowStart,4),\"\")","v":""},null,null,{"$f":"IFERROR(INDEX(tblEvents[],SMALL(IF(Dates=F$16,ROW(Dates)),ROW(3:3))-TableRowStart,4),\"\")","v":""},null,null,{"$f":"IFERROR(INDEX(tblEvents[],SMALL(IF(Dates=I$16,ROW(Dates)),ROW(3:3))-TableRowStart,4),\"\")","v":""},null,null,{"$f":"IFERROR(INDEX(tblEvents[],SMALL(IF(Dates=L$16,ROW(Dates)),ROW(3:3))-TableRowStart,4),\"\")","v":""},null,null,{"$f":"IFERROR(INDEX(tblEvents[],SMALL(IF(Dates=O$16,ROW(Dates)),ROW(3:3))-TableRowStart,4),\"\")","v":""},null,null,{"$f":"IFERROR(INDEX(tblEvents[],SMALL(IF(Dates=R$16,ROW(Dates)),ROW(3:3))-TableRowStart,4),\"\")","v":""},null,null,{"$f":"IFERROR(INDEX(tblEvents[],SMALL(IF(Dates=U$16,ROW(Dates)),ROW(3:3))-TableRowStart,4),\"\")","v":""}]
[null,null,{"$f":"IFERROR(INDEX(tblEvents[],SMALL(IF(Dates=C$16,ROW(Dates)),ROW(#REF!))-TableRowStart,4),\"\")","v":""},null,null,{"$f":"IFERROR(INDEX(tblEvents[],SMALL(IF(Dates=F$16,ROW(Dates)),ROW(#REF!))-TableRowStart,4),\"\")","v":""},null,null,{"$f":"IFERROR(INDEX(tblEvents[],SMALL(IF(Dates=I$16,ROW(Dates)),ROW(#REF!))-TableRowStart,4),\"\")","v":""},null,null,{"$f":"IFERROR(INDEX(tblEvents[],SMALL(IF(Dates=L$16,ROW(Dates)),ROW(#REF!))-TableRowStart,4),\"\")","v":""},null,null,{"$f":"IFERROR(INDEX(tblEvents[],SMALL(IF(Dates=O$16,ROW(Dates)),ROW(#REF!))-TableRowStart,4),\"\")","v":""},null,null,{"$f":"IFERROR(INDEX(tblEvents[],SMALL(IF(Dates=R$16,ROW(Dates)),ROW(#REF!))-TableRowStart,4),\"\")","v":""},null,null,{"$f":"IFERROR(INDEX(tblEvents[],SMALL(IF(Dates=U$16,ROW(Dates)),ROW(#REF!))-TableRowStart,4),\"\")","v":""}]
[null,null,{"$f":"U16+1","v":"2014-07-20"},null,null,{"$f":"C21+1","v":"2014-07-21"},null,null,{"$f":"F21+1","v":"2014-07-22"},null,null,{"$f":"I21+1","v":"2014-07-23"},null,null,{"$f":"L21+1","v":"2014-07-24"},null,null,{"$f":"O21+1","v":"2014-07-25"},null,null,{"$f":"R21+1","v":"2014-07-26"}]
[null,null,{"$f":"IFERROR(INDEX(tblEvents[],SMALL(IF(Dates=C$21,ROW(Dates)),ROW(1:1))-TableRowStart,4),\"\")","v":"Park Clean-up"},null,null,{"$f":"IFERROR(INDEX(tblEvents[],SMALL(IF(Dates=F$21,ROW(Dates)),ROW(1:1))-TableRowStart,4),\"\")","v":""},null,null,{"$f":"IFERROR(INDEX(tblEvents[],SMALL(IF(Dates=I$21,ROW(Dates)),ROW(1:1))-TableRowStart,4),\"\")","v":"City Council"},null,null,{"$f":"IFERROR(INDEX(tblEvents[],SMALL(IF(Dates=L$21,ROW(Dates)),ROW(1:1))-TableRowStart,4),\"\")","v":""},null,null,{"$f":"IFERROR(INDEX(tblEvents[],SMALL(IF(Dates=O$21,ROW(Dates)),ROW(1:1))-TableRowStart,4),\"\")","v":""},null,null,{"$f":"IFERROR(INDEX(tblEvents[],SMALL(IF(Dates=R$21,ROW(Dates)),ROW(1:1))-TableRowStart,4),\"\")","v":""},null,null,{"$f":"IFERROR(INDEX(tblEvents[],SMALL(IF(Dates=U$21,ROW(Dates)),ROW(1:1))-TableRowStart,4),\"\")","v":"Downtown Walking Tour"}]
[null,null,{"$f":"IFERROR(INDEX(tblEvents[],SMALL(IF(Dates=C$21,ROW(Dates)),ROW(2:2))-TableRowStart,4),\"\")","v":""},null,null,{"$f":"IFERROR(INDEX(tblEvents[],SMALL(IF(Dates=F$21,ROW(Dates)),ROW(2:2))-TableRowStart,4),\"\")","v":""},null,null,{"$f":"IFERROR(INDEX(tblEvents[],SMALL(IF(Dates=I$21,ROW(Dates)),ROW(2:2))-TableRowStart,4),\"\")","v":""},null,null,{"$f":"IFERROR(INDEX(tblEvents[],SMALL(IF(Dates=L$21,ROW(Dates)),ROW(2:2))-TableRowStart,4),\"\")","v":""},null,null,{"$f":"IFERROR(INDEX(tblEvents[],SMALL(IF(Dates=O$21,ROW(Dates)),ROW(2:2))-TableRowStart,4),\"\")","v":""},null,null,{"$f":"IFERROR(INDEX(tblEvents[],SMALL(IF(Dates=R$21,ROW(Dates)),ROW(2:2))-TableRowStart,4),\"\")","v":""},null,null,{"$f":"IFERROR(INDEX(tblEvents[],SMALL(IF(Dates=U$21,ROW(Dates)),ROW(2:2))-TableRowStart,4),\"\")","v":"Pub Crawl"}]
[null,null,{"$f":"IFERROR(INDEX(tblEvents[],SMALL(IF(Dates=C$21,ROW(Dates)),ROW(3:3))-TableRowStart,4),\"\")","v":""},null,null,{"$f":"IFERROR(INDEX(tblEvents[],SMALL(IF(Dates=F$21,ROW(Dates)),ROW(3:3))-TableRowStart,4),\"\")","v":""},null,null,{"$f":"IFERROR(INDEX(tblEvents[],SMALL(IF(Dates=I$21,ROW(Dates)),ROW(3:3))-TableRowStart,4),\"\")","v":""},null,null,{"$f":"IFERROR(INDEX(tblEvents[],SMALL(IF(Dates=L$21,ROW(Dates)),ROW(3:3))-TableRowStart,4),\"\")","v":""},null,null,{"$f":"IFERROR(INDEX(tblEvents[],SMALL(IF(Dates=O$21,ROW(Dates)),ROW(3:3))-TableRowStart,4),\"\")","v":""},null,null,{"$f":"IFERROR(INDEX(tblEvents[],SMALL(IF(Dates=R$21,ROW(Dates)),ROW(3:3))-TableRowStart,4),\"\")","v":""},null,null,{"$f":"IFERROR(INDEX(tblEvents[],SMALL(IF(Dates=U$21,ROW(Dates)),ROW(3:3))-TableRowStart,4),\"\")","v":""}]
[null,null,{"$f":"IFERROR(INDEX(tblEvents[],SMALL(IF(Dates=C$21,ROW(Dates)),ROW(#REF!))-TableRowStart,4),\"\")","v":""},null,null,{"$f":"IFERROR(INDEX(tblEvents[],SMALL(IF(Dates=F$21,ROW(Dates)),ROW(#REF!))-TableRowStart,4),\"\")","v":""},null,null,{"$f":"IFERROR(INDEX(tblEvents[],SMALL(IF(Dates=I$21,ROW(Dates)),ROW(#REF!))-TableRowStart,4),\"\")","v":""},null,null,{"$f":"IFERROR(INDEX(tblEvents[],SMALL(IF(Dates=L$21,ROW(Dates)),ROW(#REF!))-TableRowStart,4),\"\")","v":""},null,null,{"$f":"IFERROR(INDEX(tblEvents[],SMALL(IF(Dates=O$21,ROW(Dates)),ROW(#REF!))-TableRowStart,4),\"\")","v":""},null,null,{"$f":"IFERROR(INDEX(tblEvents[],SMALL(IF(Dates=R$21,ROW(Dates)),ROW(#REF!))-TableRowStart,4),\"\")","v":""},null,null,{"$f":"IFERROR(INDEX(tblEvents[],SMALL(IF(Dates=U$21,ROW(Dates)),ROW(#REF!))-TableRowStart,4),\"\")","v":""}]
[null,null,{"$f":"U21+1","v":"2014-07-27"},null,null,{"$f":"C26+1","v":"2014-07-28"},null,null,{"$f":"F26+1","v":"2014-07-29"},null,null,{"$f":"I26+1","v":"2014-07-30"},null,null,{"$f":"L26+1","v":"2014-07-31"},null,null,{"$f":"O26+1","v":"2014-08-01"},null,null,{"$f":"R26+1","v":"2014-08-02"}]
[null,null,{"$f":"IFERROR(INDEX(tblEvents[],SMALL(IF(Dates=C$26,ROW(Dates)),ROW(1:1))-TableRowStart,4),\"\")","v":""},null,null,{"$f":"IFERROR(INDEX(tblEvents[],SMALL(IF(Dates=F$26,ROW(Dates)),ROW(1:1))-TableRowStart,4),\"\")","v":""},null,null,{"$f":"IFERROR(INDEX(tblEvents[],SMALL(IF(Dates=I$26,ROW(Dates)),ROW(1:1))-TableRowStart,4),\"\")","v":"City Council"},null,null,{"$f":"IFERROR(INDEX(tblEvents[],SMALL(IF(Dates=L$26,ROW(Dates)),ROW(1:1))-TableRowStart,4),\"\")","v":""},null,null,{"$f":"IFERROR(INDEX(tblEvents[],SMALL(IF(Dates=O$26,ROW(Dates)),ROW(1:1))-TableRowStart,4),\"\")","v":""},null,null,{"$f":"IFERROR(INDEX(tblEvents[],SMALL(IF(Dates=R$26,ROW(Dates)),ROW(1:1))-TableRowStart,4),\"\")","v":""},null,null,{"$f":"IFERROR(INDEX(tblEvents[],SMALL(IF(Dates=U$26,ROW(Dates)),ROW(1:1))-TableRowStart,4),\"\")","v":""}]
[null,null,{"$f":"IFERROR(INDEX(tblEvents[],SMALL(IF(Dates=C$26,ROW(Dates)),ROW(2:2))-TableRowStart,4),\"\")","v":""},null,null,{"$f":"IFERROR(INDEX(tblEvents[],SMALL(IF(Dates=F$26,ROW(Dates)),ROW(2:2))-TableRowStart,4),\"\")","v":""},null,null,{"$f":"IFERROR(INDEX(tblEvents[],SMALL(IF(Dates=I$26,ROW(Dates)),ROW(2:2))-TableRowStart,4),\"\")","v":""},null,null,{"$f":"IFERROR(INDEX(tblEvents[],SMALL(IF(Dates=L$26,ROW(Dates)),ROW(2:2))-TableRowStart,4),\"\")","v":""},null,null,{"$f":"IFERROR(INDEX(tblEvents[],SMALL(IF(Dates=O$26,ROW(Dates)),ROW(2:2))-TableRowStart,4),\"\")","v":""},null,null,{"$f":"IFERROR(INDEX(tblEvents[],SMALL(IF(Dates=R$26,ROW(Dates)),ROW(2:2))-TableRowStart,4),\"\")","v":""},null,null,{"$f":"IFERROR(INDEX(tblEvents[],SMALL(IF(Dates=U$26,ROW(Dates)),ROW(2:2))-TableRowStart,4),\"\")","v":""}]
[null,null,{"$f":"IFERROR(INDEX(tblEvents[],SMALL(IF(Dates=C$26,ROW(Dates)),ROW(3:3))-TableRowStart,4),\"\")","v":""},null,null,{"$f":"IFERROR(INDEX(tblEvents[],SMALL(IF(Dates=F$26,ROW(Dates)),ROW(3:3))-TableRowStart,4),\"\")","v":""},null,null,{"$f":"IFERROR(INDEX(tblEvents[],SMALL(IF(Dates=I$26,ROW(Dates)),ROW(3:3))-TableRowStart,4),\"\")","v":""},null,null,{"$f":"IFERROR(INDEX(tblEvents[],SMALL(IF(Dates=L$26,ROW(Dates)),ROW(3:3))-TableRowStart,4),\"\")","v":""},null,null,{"$f":"IFERROR(INDEX(tblEvents[],SMALL(IF(Dates=O$26,ROW(Dates)),ROW(3:3))-TableRowStart,4),\"\")","v":""},null,null,{"$f":"IFERROR(INDEX(tblEvents[],SMALL(IF(Dates=R$26,ROW(Dates)),ROW(3:3))-TableRowStart,4),\"\")","v":""},null,null,{"$f":"IFERROR(INDEX(tblEvents[],SMALL(IF(Dates=U$26,ROW(Dates)),ROW(3:3))-TableRowStart,4),\"\")","v":""}]
[null,null,{"$f":"IFERROR(INDEX(tblEvents[],SMALL(IF(Dates=C$26,ROW(Dates)),ROW(#REF!))-TableRowStart,4),\"\")","v":""},null,null,{"$f":"IFERROR(INDEX(tblEvents[],SMALL(IF(Dates=F$26,ROW(Dates)),ROW(#REF!))-TableRowStart,4),\"\")","v":""},null,null,{"$f":"IFERROR(INDEX(tblEvents[],SMALL(IF(Dates=I$26,ROW(Dates)),ROW(#REF!))-TableRowStart,4),\"\")","v":""},null,null,{"$f":"IFERROR(INDEX(tblEvents[],SMALL(IF(Dates=L$26,ROW(Dates)),ROW(#REF!))-TableRowStart,4),\"\")","v":""},null,null,{"$f":"IFERROR(INDEX(tblEvents[],SMALL(IF(Dates=O$26,ROW(Dates)),ROW(#REF!))-TableRowStart,4),\"\")","v":""},null,null,{"$f":"IFERROR(INDEX(tblEvents[],SMALL(IF(Dates=R$26,ROW(Dates)),ROW(#REF!))-TableRowStart,4),\"\")","v":""},null,null,{"$f":"IFERROR(INDEX(tblEvents[],SMALL(IF(Dates=U$26,ROW(Dates)),ROW(#REF!))-TableRowStart,4),\"\")","v":""}]
[null,null,{"$f":"U26+1","v":"2014-08-03"},null,null,{"$f":"C31+1","v":"2014-08-04"},null,null,"NOTES:"]
[null,null,{"$f":"IFERROR(INDEX(tblEvents[],SMALL(IF(Dates=C$31,ROW(Dates)),ROW(1:1))-TableRowStart,4),\"\")","v":""},null,null,{"$f":"IFERROR(INDEX(tblEvents[],SMALL(IF(Dates=F$31,ROW(Dates)),ROW(1:1))-TableRowStart,4),\"\")","v":""}]
[null,null,{"$f":"IFERROR(INDEX(tblEvents[],SMALL(IF(Dates=C$31,ROW(Dates)),ROW(2:2))-TableRowStart,4),\"\")","v":""},null,null,{"$f":"IFERROR(INDEX(tblEvents[],SMALL(IF(Dates=F$31,ROW(Dates)),ROW(2:2))-TableRowStart,4),\"\")","v":""}]
[null,null,{"$f":"IFERROR(INDEX(tblEvents[],SMALL(IF(Dates=C$31,ROW(Dates)),ROW(3:3))-TableRowStart,4),\"\")","v":""},null,null,{"$f":"IFERROR(INDEX(tblEvents[],SMALL(IF(Dates=F$31,ROW(Dates)),ROW(3:3))-TableRowStart,4),\"\")","v":""}]
[null,null,{"$f":"IFERROR(INDEX(tblEvents[],SMALL(IF(Dates=C$31,ROW(Dates)),ROW(#REF!))-TableRowStart,4),\"\")","v":""},null,null,{"$f":"IFERROR(INDEX(tblEvents[],SMALL(IF(Dates=F$31,ROW(Dates)),ROW(#REF!))-TableRowStart,4),\"\")","v":""}]

{"sheet":"PRINT VERSION","index":2,"n_rows":35,"n_cols":21,"rows_kept":35,"merged":[[1,5,1,11],[30,8,34,20]]}
[]
[null,null,{"$f":"ViewYear","v":2014},null,null,{"$f":"ViewMonth","v":"JULY"},{"$f":"CALENDAR!G2","v":0},{"$f":"CALENDAR!H2","v":0},{"$f":"CALENDAR!I2","v":0},{"$f":"CALENDAR!J2","v":0},{"$f":"CALENDAR!K2","v":0},{"$f":"CALENDAR!L2","v":0}]
[]
[null,null,"SUN",null,null,"MON",null,null,"TUE",null,null,"WED",null,null,"THU",null,null,"FRI",null,null,"SAT"]
[]
[null,null,{"$f":"CALENDAR!C6","v":"2014-06-29"},{"$f":"CALENDAR!D6","v":0},{"$f":"CALENDAR!E6","v":0},{"$f":"CALENDAR!F6","v":"2014-06-30"},{"$f":"CALENDAR!G6","v":0},{"$f":"CALENDAR!H6","v":0},{"$f":"CALENDAR!I6","v":"2014-07-01"},{"$f":"CALENDAR!J6","v":0},{"$f":"CALENDAR!K6","v":0},{"$f":"CALENDAR!L6","v":"2014-07-02"},{"$f":"CALENDAR!M6","v":0},{"$f":"CALENDAR!N6","v":0},{"$f":"CALENDAR!O6","v":"2014-07-03"},{"$f":"CALENDAR!P6","v":0},{"$f":"CALENDAR!Q6","v":0},{"$f":"CALENDAR!R6","v":"2014-07-04"},{"$f":"CALENDAR!S6","v":0},{"$f":"CALENDAR!T6","v":0},{"$f":"CALENDAR!U6","v":"2014-07-05"}]
[null,null,{"$f":"CALENDAR!C7","v":""},{"$f":"CALENDAR!D7","v":0},{"$f":"CALENDAR!E7","v":0},{"$f":"CALENDAR!F7","v":""},{"$f":"CALENDAR!G7","v":0},{"$f":"CALENDAR!H7","v":0},{"$f":"CALENDAR!I7","v":"Community Garden"},{"$f":"CALENDAR!J7","v":0},{"$f":"CALENDAR!K7","v":0},{"$f":"CALENDAR!L7","v":"Community Garden"},{"$f":"CALENDAR!M7","v":0},{"$f":"CALENDAR!N7","v":0},{"$f":"CALENDAR!O7","v":"Movie Night at the Park"},{"$f":"CALENDAR!P7","v":0},{"$f":"CALENDAR!Q7","v":0},{"$f":"CALENDAR!R7","v":""},{"$f":"CALENDAR!S7","v":0},{"$f":"CALENDAR!T7","v":0},{"$f":"CALENDAR!U7","v":""}]
[null,null,{"$f":"CALENDAR!C8","v":""},{"$f":"CALENDAR!D8","v":"00:00:00"},{"$f":"CALENDAR!E8","v":"00:00:00"},{"$f":"CALENDAR!F8","v":""},{"$f":"CALENDAR!G8","v":"00:00:00"},{"$f":"CALENDAR!H8","v":"00:00:00"},{"$f":"CALENDAR!I8","v":"City Council"},{"$f":"CALENDAR!J8","v":"00:00:00"},{"$f":"CALENDAR!K8","v":"00:00:00"},{"$f":"CALENDAR!L8","v":""},{"$f":"CALENDAR!M8","v":"00:00:00"},{"$f":"CALENDAR!N8","v":"00:00:00"},{"$f":"CALENDAR!O8","v":""},{"$f":"CALENDAR!P8","v":"00:00:00"},{"$f":"CALENDAR!Q8","v":"00:00:00"},{"$f":"CALENDAR!R8","v":""},{"$f":"CALENDAR!S8","v":"00:00:00"},{"$f":"CALENDAR!T8","v":"00:00:00"},{"$f":"CALENDAR!U8","v":""}]
[null,null,{"$f":"CALENDAR!C9","v":""},{"$f":"CALENDAR!D9","v":0},{"$f":"CALENDAR!E9","v":0},{"$f":"CALENDAR!F9","v":""},{"$f":"CALENDAR!G9","v":0},{"$f":"CALENDAR!H9","v":0},{"$f":"CALENDAR!I9","v":""},{"$f":"CALENDAR!J9","v":0},{"$f":"CALENDAR!K9","v":0},{"$f":"CALENDAR!L9","v":""},{"$f":"CALENDAR!M9","v":0},{"$f":"CALENDAR!N9","v":0},{"$f":"CALENDAR!O9","v":""},{"$f":"CALENDAR!P9","v":0},{"$f":"CALENDAR!Q9","v":0},{"$f":"CALENDAR!R9","v":""},{"$f":"CALENDAR!S9","v":0},{"$f":"CALENDAR!T9","v":0},{"$f":"CALENDAR!U9","v":""}]
[null,null,{"$f":"CALENDAR!C10","v":""},{"$f":"CALENDAR!D10","v":0},{"$f":"CALENDAR!E10","v":0},{"$f":"CALENDAR!F10","v":""},{"$f":"CALENDAR!G10","v":0},{"$f":"CALENDAR!H10","v":0},{"$f":"CALENDAR!I10","v":""},{"$f":"CALENDAR!J10","v":0},{"$f":"CALENDAR!K10","v":0},{"$f":"CALENDAR!L10","v":""},{"$f":"CALENDAR!M10","v":0},{"$f":"CALENDAR!N10","v":0},{"$f":"CALENDAR!O10","v":""},{"$f":"CALENDAR!P10","v":0},{"$f":"CALENDAR!Q10","v":0},{"$f":"CALENDAR!R10","v":""},{"$f":"CALENDAR!S10","v":0},{"$f":"CALENDAR!T10","v":0},{"$f":"CALENDAR!U10","v":""}]
[null,null,{"$f":"CALENDAR!C11","v":"2014-07-06"},{"$f":"CALENDAR!D11","v":0},{"$f":"CALENDAR!E11","v":0},{"$f":"CALENDAR!F11","v":"2014-07-07"},{"$f":"CALENDAR!G11","v":0},{"$f":"CALENDAR!H11","v":0},{"$f":"CALENDAR!I11","v":"2014-07-08"},{"$f":"CALENDAR!J11","v":0},{"$f":"CALENDAR!K11","v":0},{"$f":"CALENDAR!L11","v":"2014-07-09"},{"$f":"CALENDAR!M11","v":0},{"$f":"CALENDAR!N11","v":0},{"$f":"CALENDAR!O11","v":"2014-07-10"},{"$f":"CALENDAR!P11","v":0},{"$f":"CALENDAR!Q11","v":0},{"$f":"CALENDAR!R11","v":"2014-07-11"},{"$f":"CALENDAR!S11","v":0},{"$f":"CALENDAR!T11","v":0},{"$f":"CALENDAR!U11","v":"2014-07-12"}]
[null,null,{"$f":"CALENDAR!C12","v":""},{"$f":"CALENDAR!D12","v":0},{"$f":"CALENDAR!E12","v":0},{"$f":"CALENDAR!F12","v":""},{"$f":"CALENDAR!G12","v":0},{"$f":"CALENDAR!H12","v":0},{"$f":"CALENDAR!I12","v":"City Council"},{"$f":"CALENDAR!J12","v":0},{"$f":"CALENDAR!K12","v":0},{"$f":"CALENDAR!L12","v":""},{"$f":"CALENDAR!M12","v":0},{"$f":"CALENDAR!N12","v":0},{"$f":"CALENDAR!O12","v":""},{"$f":"CALENDAR!P12","v":0},{"$f":"CALENDAR!Q12","v":0},{"$f":"CALENDAR!R12","v":"Chamber of Comm. Luncheon"},{"$f":"CALENDAR!S12","v":0},{"$f":"CALENDAR!T12","v":0},{"$f":"CALENDAR!U12","v":"Antiques Show"}]
[null,null,{"$f":"CALENDAR!C13","v":""},{"$f":"CALENDAR!D13","v":0},{"$f":"CALENDAR!E13","v":0},{"$f":"CALENDAR!F13","v":""},{"$f":"CALENDAR!G13","v":0},{"$f":"CALENDAR!H13","v":0},{"$f":"CALENDAR!I13","v":""},{"$f":"CALENDAR!J13","v":0},{"$f":"CALENDAR!K13","v":0},{"$f":"CALENDAR!L13","v":""},{"$f":"CALENDAR!M13","v":0},{"$f":"CALENDAR!N13","v":0},{"$f":"CALENDAR!O13","v":""},{"$f":"CALENDAR!P13","v":0},{"$f":"CALENDAR!Q13","v":0},{"$f":"CALENDAR!R13","v":""},{"$f":"CALENDAR!S13","v":0},{"$f":"CALENDAR!T13","v":0},{"$f":"CALENDAR!U13","v":""}]
[null,null,{"$f":"CALENDAR!C14","v":""},{"$f":"CALENDAR!D14","v":0},{"$f":"CALENDAR!E14","v":0},{"$f":"CALENDAR!F14","v":""},{"$f":"CALENDAR!G14","v":0},{"$f":"CALENDAR!H14","v":0},{"$f":"CALENDAR!I14","v":""},{"$f":"CALENDAR!J14","v":0},{"$f":"CALENDAR!K14","v":0},{"$f":"CALENDAR!L14","v":""},{"$f":"CALENDAR!M14","v":0},{"$f":"CALENDAR!N14","v":0},{"$f":"CALENDAR!O14","v":""},{"$f":"CALENDAR!P14","v":0},{"$f":"CALENDAR!Q14","v":0},{"$f":"CALENDAR!R14","v":""},{"$f":"CALENDAR!S14","v":0},{"$f":"CALENDAR!T14","v":0},{"$f":"CALENDAR!U14","v":""}]
[null,null,{"$f":"CALENDAR!C15","v":""},{"$f":"CALENDAR!D15","v":0},{"$f":"CALENDAR!E15","v":0},{"$f":"CALENDAR!F15","v":""},{"$f":"CALENDAR!G15","v":0},{"$f":"CALENDAR!H15","v":0},{"$f":"CALENDAR!I15","v":""},{"$f":"CALENDAR!J15","v":0},{"$f":"CALENDAR!K15","v":0},{"$f":"CALENDAR!L15","v":""},{"$f":"CALENDAR!M15","v":0},{"$f":"CALENDAR!N15","v":0},{"$f":"CALENDAR!O15","v":""},{"$f":"CALENDAR!P15","v":0},{"$f":"CALENDAR!Q15","v":0},{"$f":"CALENDAR!R15","v":""},{"$f":"CALENDAR!S15","v":0},{"$f":"CALENDAR!T15","v":0},{"$f":"CALENDAR!U15","v":""}]
[null,null,{"$f":"CALENDAR!C16","v":"2014-07-13"},{"$f":"CALENDAR!D16","v":0},{"$f":"CALENDAR!E16","v":0},{"$f":"CALENDAR!F16","v":"2014-07-14"},{"$f":"CALENDAR!G16","v":0},{"$f":"CALENDAR!H16","v":0},{"$f":"CALENDAR!I16","v":"2014-07-15"},{"$f":"CALENDAR!J16","v":0},{"$f":"CALENDAR!K16","v":0},{"$f":"CALENDAR!L16","v":"2014-07-16"},{"$f":"CALENDAR!M16","v":0},{"$f":"CALENDAR!N16","v":0},{"$f":"CALENDAR!O16","v":"2014-07-17"},{"$f":"CALENDAR!P16","v":0},{"$f":"CALENDAR!Q16","v":0},{"$f":"CALENDAR!R16","v":"2014-07-18"},{"$f":"CALENDAR!S16","v":0},{"$f":"CALENDAR!T16","v":0},{"$f":"CALENDAR!U16","v":"2014-07-19"}]
[null,null,{"$f":"CALENDAR!C17","v":""},{"$f":"CALENDAR!D17","v":0},{"$f":"CALENDAR!E17","v":0},{"$f":"CALENDAR!F17","v":"Community Workshop"},{"$f":"CALENDAR!G17","v":0},{"$f":"CALENDAR!H17","v":0},{"$f":"CALENDAR!I17","v":"City Council"},{"$f":"CALENDAR!J17","v":0},{"$f":"CALENDAR!K17","v":0},{"$f":"CALENDAR!L17","v":""},{"$f":"CALENDAR!M17","v":0},{"$f":"CALENDAR!N17","v":0},{"$f":"CALENDAR!O17","v":""},{"$f":"CALENDAR!P17","v":0},{"$f":"CALENDAR!Q17","v":0},{"$f":"CALENDAR!R17","v":""},{"$f":"CALENDAR!S17","v":0},{"$f":"CALENDAR!T17","v":0},{"$f":"CALENDAR!U17","v":"Strategic Planning Workshop"}]
[null,null,{"$f":"CALENDAR!C18","v":""},{"$f":"CALENDAR!D18","v":0},{"$f":"CALENDAR!E18","v":0},{"$f":"CALENDAR!F18","v":""},{"$f":"CALENDAR!G18","v":0},{"$f":"CALENDAR!H18","v":0},{"$f":"CALENDAR!I18","v":""},{"$f":"CALENDAR!J18","v":0},{"$f":"CALENDAR!K18","v":0},{"$f":"CALENDAR!L18","v":""},{"$f":"CALENDAR!M18","v":0},{"$f":"CALENDAR!N18","v":0},{"$f":"CALENDAR!O18","v":""},{"$f":"CALENDAR!P18","v":0},{"$f":"CALENDAR!Q18","v":0},{"$f":"CALENDAR!R18","v":""},{"$f":"CALENDAR!S18","v":0},{"$f":"CALENDAR!T18","v":0},{"$f":"CALENDAR!U18","v":""}]
[null,null,{"$f":"CALENDAR!C19","v":""},{"$f":"CALENDAR!D19","v":0},{"$f":"CALENDAR!E19","v":0},{"$f":"CALENDAR!F19","v":""},{"$f":"CALENDAR!G19","v":0},{"$f":"CALENDAR!H19","v":0},{"$f":"CALENDAR!I19","v":""},{"$f":"CALENDAR!J19","v":0},{"$f":"CALENDAR!K19","v":0},{"$f":"CALENDAR!L19","v":""},{"$f":"CALENDAR!M19","v":0},{"$f":"CALENDAR!N19","v":0},{"$f":"CALENDAR!O19","v":""},{"$f":"CALENDAR!P19","v":0},{"$f":"CALENDAR!Q19","v":0},{"$f":"CALENDAR!R19","v":""},{"$f":"CALENDAR!S19","v":0},{"$f":"CALENDAR!T19","v":0},{"$f":"CALENDAR!U19","v":""}]
[null,null,{"$f":"CALENDAR!C20","v":""},{"$f":"CALENDAR!D20","v":0},{"$f":"CALENDAR!E20","v":0},{"$f":"CALENDAR!F20","v":""},{"$f":"CALENDAR!G20","v":0},{"$f":"CALENDAR!H20","v":0},{"$f":"CALENDAR!I20","v":""},{"$f":"CALENDAR!J20","v":0},{"$f":"CALENDAR!K20","v":0},{"$f":"CALENDAR!L20","v":""},{"$f":"CALENDAR!M20","v":0},{"$f":"CALENDAR!N20","v":0},{"$f":"CALENDAR!O20","v":""},{"$f":"CALENDAR!P20","v":0},{"$f":"CALENDAR!Q20","v":0},{"$f":"CALENDAR!R20","v":""},{"$f":"CALENDAR!S20","v":0},{"$f":"CALENDAR!T20","v":0},{"$f":"CALENDAR!U20","v":""}]
[null,null,{"$f":"CALENDAR!C21","v":"2014-07-20"},{"$f":"CALENDAR!D21","v":0},{"$f":"CALENDAR!E21","v":0},{"$f":"CALENDAR!F21","v":"2014-07-21"},{"$f":"CALENDAR!G21","v":0},{"$f":"CALENDAR!H21","v":0},{"$f":"CALENDAR!I21","v":"2014-07-22"},{"$f":"CALENDAR!J21","v":0},{"$f":"CALENDAR!K21","v":0},{"$f":"CALENDAR!L21","v":"2014-07-23"},{"$f":"CALENDAR!M21","v":0},{"$f":"CALENDAR!N21","v":0},{"$f":"CALENDAR!O21","v":"2014-07-24"},{"$f":"CALENDAR!P21","v":0},{"$f":"CALENDAR!Q21","v":0},{"$f":"CALENDAR!R21","v":"2014-07-25"},{"$f":"CALENDAR!S21","v":0},{"$f":"CALENDAR!T21","v":0},{"$f":"CALENDAR!U21","v":"2014-07-26"}]
[null,null,{"$f":"CALENDAR!C22","v":"Park Clean-up"},{"$f":"CALENDAR!D22","v":0},{"$f":"CALENDAR!E22","v":0},{"$f":"CALENDAR!F22","v":""},{"$f":"CALENDAR!G22","v":0},{"$f":"CALENDAR!H22","v":0},{"$f":"CALENDAR!I22","v":"City Council"},{"$f":"CALENDAR!J22","v":0},{"$f":"CALENDAR!K22","v":0},{"$f":"CALENDAR!L22","v":""},{"$f":"CALENDAR!M22","v":0},{"$f":"CALENDAR!N22","v":0},{"$f":"CALENDAR!O22","v":""},{"$f":"CALENDAR!P22","v":0},{"$f":"CALENDAR!Q22","v":0},{"$f":"CALENDAR!R22","v":""},{"$f":"CALENDAR!S22","v":0},{"$f":"CALENDAR!T22","v":0},{"$f":"CALENDAR!U22","v":"Downtown Walking Tour"}]
[null,null,{"$f":"CALENDAR!C23","v":""},{"$f":"CALENDAR!D23","v":0},{"$f":"CALENDAR!E23","v":0},{"$f":"CALENDAR!F23","v":""},{"$f":"CALENDAR!G23","v":0},{"$f":"CALENDAR!H23","v":0},{"$f":"CALENDAR!I23","v":""},{"$f":"CALENDAR!J23","v":0},{"$f":"CALENDAR!K23","v":0},{"$f":"CALENDAR!L23","v":""},{"$f":"CALENDAR!M23","v":0},{"$f":"CALENDAR!N23","v":0},{"$f":"CALENDAR!O23","v":""},{"$f":"CALENDAR!P23","v":0},{"$f":"CALENDAR!Q23","v":0},{"$f":"CALENDAR!R23","v":""},{"$f":"CALENDAR!S23","v":0},{"$f":"CALENDAR!T23","v":0},{"$f":"CALENDAR!U23","v":"Pub Crawl"}]
[null,null,{"$f":"CALENDAR!C24","v":""},{"$f":"CALENDAR!D24","v":0},{"$f":"CALENDAR!E24","v":0},{"$f":"CALENDAR!F24","v":""},{"$f":"CALENDAR!G24","v":0},{"$f":"CALENDAR!H24","v":0},{"$f":"CALENDAR!I24","v":""},{"$f":"CALENDAR!J24","v":0},{"$f":"CALENDAR!K24","v":0},{"$f":"CALENDAR!L24","v":""},{"$f":"CALENDAR!M24","v":0},{"$f":"CALENDAR!N24","v":0},{"$f":"CALENDAR!O24","v":""},{"$f":"CALENDAR!P24","v":0},{"$f":"CALENDAR!Q24","v":0},{"$f":"CALENDAR!R24","v":""},{"$f":"CALENDAR!S24","v":0},{"$f":"CALENDAR!T24","v":0},{"$f":"CALENDAR!U24","v":""}]
[null,null,{"$f":"CALENDAR!C25","v":""},{"$f":"CALENDAR!D25","v":0},{"$f":"CALENDAR!E25","v":0},{"$f":"CALENDAR!F25","v":""},{"$f":"CALENDAR!G25","v":0},{"$f":"CALENDAR!H25","v":0},{"$f":"CALENDAR!I25","v":""},{"$f":"CALENDAR!J25","v":0},{"$f":"CALENDAR!K25","v":0},{"$f":"CALENDAR!L25","v":""},{"$f":"CALENDAR!M25","v":0},{"$f":"CALENDAR!N25","v":0},{"$f":"CALENDAR!O25","v":""},{"$f":"CALENDAR!P25","v":0},{"$f":"CALENDAR!Q25","v":0},{"$f":"CALENDAR!R25","v":""},{"$f":"CALENDAR!S25","v":0},{"$f":"CALENDAR!T25","v":0},{"$f":"CALENDAR!U25","v":""}]
[null,null,{"$f":"CALENDAR!C26","v":"2014-07-27"},{"$f":"CALENDAR!D26","v":0},{"$f":"CALENDAR!E26","v":0},{"$f":"CALENDAR!F26","v":"2014-07-28"},{"$f":"CALENDAR!G26","v":0},{"$f":"CALENDAR!H26","v":0},{"$f":"CALENDAR!I26","v":"2014-07-29"},{"$f":"CALENDAR!J26","v":0},{"$f":"CALENDAR!K26","v":0},{"$f":"CALENDAR!L26","v":"2014-07-30"},{"$f":"CALENDAR!M26","v":0},{"$f":"CALENDAR!N26","v":0},{"$f":"CALENDAR!O26","v":"2014-07-31"},{"$f":"CALENDAR!P26","v":0},{"$f":"CALENDAR!Q26","v":0},{"$f":"CALENDAR!R26","v":"2014-08-01"},{"$f":"CALENDAR!S26","v":0},{"$f":"CALENDAR!T26","v":0},{"$f":"CALENDAR!U26","v":"2014-08-02"}]
[null,null,{"$f":"CALENDAR!C27","v":""},{"$f":"CALENDAR!D27","v":0},{"$f":"CALENDAR!E27","v":0},{"$f":"CALENDAR!F27","v":""},{"$f":"CALENDAR!G27","v":0},{"$f":"CALENDAR!H27","v":0},{"$f":"CALENDAR!I27","v":"City Council"},{"$f":"CALENDAR!J27","v":0},{"$f":"CALENDAR!K27","v":0},{"$f":"CALENDAR!L27","v":""},{"$f":"CALENDAR!M27","v":0},{"$f":"CALENDAR!N27","v":0},{"$f":"CALENDAR!O27","v":""},{"$f":"CALENDAR!P27","v":0},{"$f":"CALENDAR!Q27","v":0},{"$f":"CALENDAR!R27","v":""},{"$f":"CALENDAR!S27","v":0},{"$f":"CALENDAR!T27","v":0},{"$f":"CALENDAR!U27","v":""}]
[null,null,{"$f":"CALENDAR!C28","v":""},{"$f":"CALENDAR!D28","v":0},{"$f":"CALENDAR!E28","v":0},{"$f":"CALENDAR!F28","v":""},{"$f":"CALENDAR!G28","v":0},{"$f":"CALENDAR!H28","v":0},{"$f":"CALENDAR!I28","v":""},{"$f":"CALENDAR!J28","v":0},{"$f":"CALENDAR!K28","v":0},{"$f":"CALENDAR!L28","v":""},{"$f":"CALENDAR!M28","v":0},{"$f":"CALENDAR!N28","v":0},{"$f":"CALENDAR!O28","v":""},{"$f":"CALENDAR!P28","v":0},{"$f":"CALENDAR!Q28","v":0},{"$f":"CALENDAR!R28","v":""},{"$f":"CALENDAR!S28","v":0},{"$f":"CALENDAR!T28","v":0},{"$f":"CALENDAR!U28","v":""}]
[null,null,{"$f":"CALENDAR!C29","v":""},{"$f":"CALENDAR!D29","v":0},{"$f":"CALENDAR!E29","v":0},{"$f":"CALENDAR!F29","v":""},{"$f":"CALENDAR!G29","v":0},{"$f":"CALENDAR!H29","v":0},{"$f":"CALENDAR!I29","v":""},{"$f":"CALENDAR!J29","v":0},{"$f":"CALENDAR!K29","v":0},{"$f":"CALENDAR!L29","v":""},{"$f":"CALENDAR!M29","v":0},{"$f":"CALENDAR!N29","v":0},{"$f":"CALENDAR!O29","v":""},{"$f":"CALENDAR!P29","v":0},{"$f":"CALENDAR!Q29","v":0},{"$f":"CALENDAR!R29","v":""},{"$f":"CALENDAR!S29","v":0},{"$f":"CALENDAR!T29","v":0},{"$f":"CALENDAR!U29","v":""}]
[null,null,{"$f":"CALENDAR!C30","v":""},{"$f":"CALENDAR!D30","v":0},{"$f":"CALENDAR!E30","v":0},{"$f":"CALENDAR!F30","v":""},{"$f":"CALENDAR!G30","v":0},{"$f":"CALENDAR!H30","v":0},{"$f":"CALENDAR!I30","v":""},{"$f":"CALENDAR!J30","v":0},{"$f":"CALENDAR!K30","v":0},{"$f":"CALENDAR!L30","v":""},{"$f":"CALENDAR!M30","v":0},{"$f":"CALENDAR!N30","v":0},{"$f":"CALENDAR!O30","v":""},{"$f":"CALENDAR!P30","v":0},{"$f":"CALENDAR!Q30","v":0},{"$f":"CALENDAR!R30","v":""},{"$f":"CALENDAR!S30","v":0},{"$f":"CALENDAR!T30","v":0},{"$f":"CALENDAR!U30","v":""}]
[null,null,{"$f":"CALENDAR!C31","v":"2014-08-03"},{"$f":"CALENDAR!D31","v":0},{"$f":"CALENDAR!E31","v":0},{"$f":"CALENDAR!F31","v":"2014-08-04"},null,null,{"$f":"CALENDAR!I31","v":"NOTES:"}]
[null,null,{"$f":"CALENDAR!C32","v":""},{"$f":"CALENDAR!D32","v":0},{"$f":"CALENDAR!E32","v":0},{"$f":"CALENDAR!F32","v":""}]
[null,null,{"$f":"CALENDAR!C33","v":""},{"$f":"CALENDAR!D33","v":0},{"$f":"CALENDAR!E33","v":0},{"$f":"CALENDAR!F33","v":""}]
[null,null,{"$f":"CALENDAR!C34","v":""},{"$f":"CALENDAR!D34","v":0},{"$f":"CALENDAR!E34","v":0},{"$f":"CALENDAR!F34","v":""}]
[null,null,{"$f":"CALENDAR!C35","v":""},{"$f":"CALENDAR!D35","v":0},{"$f":"CALENDAR!E35","v":0},{"$f":"CALENDAR!F35","v":""}]

{"sheet":"ADMIN","index":3,"n_rows":14,"n_cols":3,"rows_kept":14,"hidden":true}
[]
[null,"MONTH","NUMBER"]
[null,"JANUARY",1]
[null,"FEBRUARY",2]
[null,"MARCH",3]
[null,"APRIL",4]
[null,"MAY",5]
[null,"JUNE",6]
[null,"JULY",7]
[null,"AUGUST",8]
[null,"SEPTEMBER",9]
[null,"OCTOBER",10]
[null,"NOVEMBER",11]
[null,"DECEMBER",12]